bitfinex-derivatives/quotes_ETHF0:USTF0_20250104
["timestamp","ask_amount","ask_price","bid_price","bid_amount"]
[1736023524438,3.89043,3662.9,3662.1,4.0826]
[1736023524643,0.68267,3662.6,3661.9,2.18218944]
[1736023524945,0.68269,3662.5,3661.6,2.45532944]
[1736023525150,0.27312,3661.9,3661.6,2.45532944]
[1736023525346,0.27313,3661.8,3661.6,2.45532944]
[1736023525541,0.68269,3662.5,3661.6,2.45532944]
[1736023525743,2.9346,3662.8,3661.6,2.18218944]
[1736023526045,0.68271,3662.4,3661.6,2.18218944]
[1736023526239,0.27313,3661.8,3661.6,2.18218944]
[1736023526545,0.27313,3661.7,3661.6,2.18218944]
[1736023526847,0.27313,3661.8,3661.6,2.18218944]
[1736023527039,0.27314,3661.6,3661.3,5.66314944]
[1736023527348,0.27316,3661.4,3661.3,5.38998944]
[1736023527740,0.27315,3661.5,3661.3,5.38998944]
[1736023528036,4.102,3662.0,3661.3,5.38998944]
[1736023528238,0.27309,3662.3,3661.8,0.27312]
[1736023528443,0.2731,3662.2,3661.9,0.27312]
[1736023528639,0.2731,3662.2,3661.8,3.48092]
[1736023529041,0.27311,3662.1,3661.8,3.48092]
[1736023529243,3.2078,3662.4,3661.8,3.2078]
[1736023529437,0.27311,3662.1,3661.8,3.48092]
[1736023529643,3.2078,3662.4,3662.3,0.27309]
[1736023530651,0.853,3662.8,3662.2,2.18218944]
[1736023530652,0.27308,3662.5,3662.2,2.45527944]
[1736023530946,0.853,3662.8,3661.9,3.98308944]
[1736023531249,0.27308,3662.5,3662.2,0.27309]
[1736023531449,0.27308,3662.4,3662.1,0.2731]
[1736023531645,0.853,3662.8,3661.9,3.98308944]
[1736023531950,0.2731,3662.2,3661.9,4.25619944]
[1736023532846,0.27309,3662.3,3662.0,0.27311]
[1736023533546,0.853,3662.8,3662.2,2.18218944]
[1736023533746,0.853,3662.8,3662.1,0.2731]
[1736023533945,0.27308,3662.4,3662.1,0.2731]
[1736023534148,3.2078,3662.6,3661.9,3.98308944]
[1736023534345,3.2078,3662.5,3661.9,3.98308944]
[1736023534549,0.2731,3662.2,3661.9,2.18218944]
[1736023534747,0.853,3662.8,3661.9,2.18218944]
[1736023534949,0.27309,3662.3,3661.9,2.18218944]
[1736023535149,0.2731,3662.2,3662.0,0.27311]
[1736023536248,0.853,3662.8,3661.9,2.18218944]
[1736023536448,0.27308,3662.5,3662.2,0.27309]
[1736023536653,0.853,3662.8,3662.2,0.27309]
[1736023536654,0.27308,3662.4,3662.2,0.27309]
[1736023537653,0.27308,3662.4,3661.9,2.18218944]
[1736023537952,0.27308,3662.4,3662.3,0.27309]
[1736023538549,0.27308,3662.5,3662.3,0.27309]
[1736023538747,0.853,3662.8,3662.3,0.27309]
[1736023538953,0.27308,3662.4,3662.3,0.27309]
[1736023539556,0.853,3662.8,3662.3,0.27309]
[1736023539752,0.27308,3662.4,3662.2,0.27309]
[1736023539993,0.853,3662.8,3662.3,0.27308]
[1736023540258,0.27308,3662.4,3662.3,0.27308]
[1736023540559,0.27308,3662.4,3662.3,0.27309]
[1736023541063,0.853,3662.8,3662.3,0.27309]
[1736023541064,0.27308,3662.5,3662.3,0.27309]
[1736023541562,0.853,3662.8,3662.2,2.45527944]
[1736023541860,0.27308,3662.4,3662.3,0.27309]
[1736023542360,0.27308,3662.4,3662.2,2.18218944]
[1736023542756,0.27308,3662.4,3662.3,0.27309]
[1736023543759,0.853,3662.8,3662.2,2.18218944]
[1736023543955,0.68265,3662.7,3661.8,5.38998944]
[1736023544156,0.853,3662.8,3661.8,5.38998944]
[1736023544157,0.853,3662.8,3661.8,3.2078]
[1736023544361,3.89049,3662.5,3661.5,10.5029659]
[1736023544561,0.27314,3661.6,3661.5,10.5029659]
[1736023544765,0.27314,3661.6,3661.5,2.45532944]
[1736023545258,3.89049,3662.5,3661.5,2.45532944]
[1736023545561,0.27314,3661.7,3661.5,2.45532944]
[1736023545758,0.68271,3662.4,3661.5,2.18218944]
[1736023545959,0.27312,3661.9,3661.7,0.27313]
[1736023546368,0.27313,3661.8,3661.6,0.27314]
[1736023549166,0.68271,3662.4,3661.5,2.18218944]
[1736023549360,0.27312,3661.9,3661.7,0.27313]
[1736023549767,0.27312,3661.9,3661.8,2.18218944]
[1736023550066,3.2078,3662.5,3661.8,2.18218944]
[1736023550262,0.2731,3662.2,3662.1,2.18218944]
[1736023554262,0.27311,3662.0,3661.9,0.27311]
[1736023554559,0.27309,3662.4,3662.3,0.27308]
[1736023555360,3.2078,3662.9,3662.2,2.18218944]
[1736023555562,3.48085,3662.9,3662.8,0.27305]
[1736023555776,0.27304,3663.0,3662.9,0.27304]
[1736023556391,3.2078,3663.3,3662.6,2.18218944]
[1736023556392,0.27305,3662.9,3662.8,0.27305]
[1736023556566,3.2078,3663.3,3662.3,2.18218944]
[1736023556870,0.27307,3662.5,3662.4,0.27308]
[1736023557059,0.27308,3662.4,3662.3,2.18218944]
[1736023557375,0.27308,3662.4,3662.3,8.52032898]
[1736023557575,0.27308,3662.4,3662.3,6.33813954]
[1736023558676,0.27309,3662.3,3662.2,3.2078]
[1736023558876,1.2927,3662.8,3662.2,3.2078]
[1736023559075,0.27309,3662.4,3662.2,3.4809]
[1736023560280,0.27308,3662.5,3662.3,2.45527944]
[1736023561174,0.27308,3662.5,3662.4,0.27308]
[1736023561379,1.2927,3662.8,3662.3,2.45527944]
[1736023561579,0.27308,3662.5,3662.3,2.45527944]
[1736023561980,0.27308,3662.5,3662.4,0.27308]
[1736023562174,1.2927,3662.8,3662.4,0.27308]
[1736023562368,0.27307,3662.6,3662.4,0.27308]
[1736023562878,3.2078,3662.9,3662.8,0.27305]
[1736023563079,3.2078,3662.9,3662.8,2.45523944]
[1736023563283,3.2078,3662.9,3662.8,2.18218944]
[1736023563475,3.2078,3663.7,3662.8,7.18218944]
[1736023563676,4.25239711,3663.9,3663.8,0.27298]
[1736023564278,4.25239711,3664.1,3664.0,0.27296]
[1736023565280,4.25239711,3664.1,3664.0,1.52746]
[1736023565983,4.25239711,3664.1,3664.0,2.87486]
[1736023566174,3.2078,3665.3,3664.0,15.63271257]
[1736023566381,3.2078,3665.3,3665.0,2.18218944]
[1736023566577,3.2078,3665.3,3665.2,0.27287]
[1736023566778,4.28292734,3665.5,3665.4,0.27286]
[1736023567079,0.95676994,3666.8,3666.7,0.54556]
[1736023567300,8.0039946,3667.1,3667.0,0.27274]
[1736023567481,9.28110363,3667.4,3667.3,0.27272]
[1736023567678,9.28110363,3667.4,3666.7,6.57081069]
[1736023567679,5.67192734,3666.9,3666.7,2.18218944]
[1736023567879,13.31443663,3667.4,3666.8,3.2078]
[1736023568082,5.67192734,3666.9,3666.4,3.2078]
[1736023568279,5.67192734,3667.0,3666.4,3.48058]
[1736023568485,5.67192734,3666.8,3666.4,3.2078]
[1736023568684,0.27274,3667.0,3666.4,3.2078]
[1736023568685,5.67192734,3666.5,3666.4,3.2078]
[1736023569080,3.2078,3667.0,3666.3,3.2078]
[1736023569382,5.67192734,3666.5,3666.3,3.2078]
[1736023569587,5.67192734,3666.4,3666.3,3.2078]
[1736023570082,6.77024034,3666.4,3666.3,3.2078]
[1736023570286,1.57939428,3666.4,3666.0,6.27765589]
[1736023570487,1.57939428,3666.2,3666.0,6.27765589]
[1736023570683,1.57939428,3666.2,3665.9,3.2078]
[1736023571281,1.57939428,3666.0,3665.9,3.2078]
[1736023572692,1.3454,3666.7,3665.9,3.2078]
[1736023572990,1.57939428,3666.2,3665.9,3.2078]
[1736023575790,1.85219428,3666.2,3665.9,3.2078]
[1736023577285,1.57939428,3666.2,3665.9,3.2078]
[1736023577485,0.27278,3666.6,3665.9,3.2078]
[1736023577890,0.825533,3666.6,3665.9,3.2078]
[1736023578188,0.27279,3666.4,3665.9,3.2078]
[1736023578390,0.2728,3666.2,3665.9,3.2078]
[1736023578587,4.033333,3666.6,3665.9,3.2078]
[1736023578780,0.27279,3666.3,3665.9,3.2078]
[1736023579184,1.098323,3666.3,3665.9,3.2078]
[1736023579400,0.825533,3666.3,3665.9,3.2078]
[1736023579589,0.27281,3666.1,3665.9,3.2078]
[1736023579787,0.825533,3666.3,3665.9,3.2078]
[1736023580285,0.2728,3666.2,3665.9,3.2078]
[1736023580481,0.27281,3666.1,3665.9,3.2078]
[1736023580887,1.098343,3666.1,3665.9,3.2078]
[1736023581184,3.2078,3666.6,3665.9,3.2078]
[1736023581390,0.27281,3666.1,3665.9,3.2078]
[1736023582594,3.2078,3666.1,3665.1,9.48545589]
[1736023582797,0.27281,3666.0,3665.5,0.27284]
[1736023583091,0.27281,3666.0,3665.5,3.2078]
[1736023583491,0.27284,3665.7,3665.5,3.2078]
[1736023583689,0.27283,3665.8,3665.5,3.2078]
[1736023584088,3.2078,3666.1,3665.5,3.2078]
[1736023584284,0.27282,3665.9,3665.5,3.2078]
[1736023584691,3.2078,3666.1,3665.5,3.2078]
[1736023584889,3.2078,3666.1,3665.5,3.48065]
[1736023585193,0.27282,3665.9,3665.5,3.48065]
[1736023585396,0.27282,3665.9,3665.5,3.2078]
[1736023585994,0.27283,3665.9,3665.5,3.2078]
[1736023586389,0.27279,3666.3,3665.5,3.2078]
[1736023586694,0.27283,3665.8,3665.5,3.2078]
[1736023587487,0.27282,3665.9,3665.5,0.27285]
[1736023588492,5.38529887,3666.3,3665.5,0.27285]
[1736023588697,0.27283,3665.8,3665.4,0.27285]
[1736023588897,0.27282,3665.9,3665.5,0.27285]
[1736023589394,3.20203843,3666.3,3665.5,0.27285]
[1736023589699,0.27282,3665.9,3665.5,0.27285]
[1736023590592,0.27283,3665.8,3665.5,0.27285]
[1736023590895,0.27282,3665.9,3665.5,0.27285]
[1736023591291,0.27283,3665.8,3665.7,3.2078]
[1736023592998,0.27285,3665.6,3665.3,0.27286]
[1736023594400,0.27284,3665.7,3665.4,0.27285]
[1736023595502,0.27283,3665.8,3665.5,0.27285]
[1736023595698,1.2298,3665.9,3665.8,0.27283]
[1736023595998,2.45026887,3666.6,3666.2,0.27279]
[1736023596191,3.2078,3667.3,3667.2,0.27272]
[1736023596393,2.39174547,3667.8,3667.6,0.27269]
[1736023596599,0.27267,3667.9,3666.9,3.88967]
[1736023596889,0.27268,3667.9,3667.5,0.2727]
[1736023597097,0.00393866,3668.0,3667.0,1.2502]
[1736023597403,0.00393866,3668.0,3667.8,0.27268]
[1736023597595,0.27660866,3668.0,3667.0,7.33347748]
[1736023597792,0.00393866,3668.0,3667.0,7.33347748]
[1736023597998,0.27267,3667.9,3667.1,0.27273]
[1736023598204,2.17749887,3667.8,3667.0,6.08327748]
[1736023598503,2.17749887,3667.5,3667.1,6.08327748]
[1736023598897,0.00393866,3668.0,3667.1,6.08327748]
[1736023599201,0.27660866,3668.0,3667.1,6.08327748]
[1736023599403,0.00393866,3668.0,3667.7,3.2078]
[1736023599593,0.91047406,3668.7,3667.8,1.3489]
[1736023599799,0.91047406,3668.7,3668.5,3.2078]
[1736023600503,0.91047406,3668.7,3668.6,0.27262]
[1736023601100,0.91047406,3668.7,3668.5,3.2078]
[1736023601403,0.91047406,3668.7,3668.3,3.2078]
[1736023601601,0.91047406,3668.7,3668.3,3.48044]
[1736023601904,0.91047406,3668.7,3668.4,0.27263]
[1736023602300,0.91047406,3668.7,3668.1,6.27765589]
[1736023602508,1.18308406,3668.7,3668.2,0.27265]
[1736023603029,0.91047406,3668.7,3668.0,6.27765589]
[1736023603505,0.27262,3668.6,3668.3,4.16183387]
[1736023603702,0.91047406,3668.7,3668.3,4.16183387]
[1736023603703,0.27263,3668.4,3668.3,4.16183387]
[1736023603908,3.48043,3668.4,3668.3,4.16183387]
[1736023604901,0.27265,3668.3,3668.0,0.27266]
[1736023605105,0.27265,3668.2,3667.9,4.16183387]
[1736023605304,0.27264,3668.3,3667.9,4.16183387]
[1736023605507,0.27264,3668.3,3668.0,0.27266]
[1736023605905,0.27264,3668.3,3667.9,4.16183387]
[1736023606104,0.27264,3668.3,3668.1,4.16183387]
[1736023606701,0.27265,3668.2,3668.1,4.16183387]
[1736023606915,1.3268,3668.6,3668.0,4.16183387]
[1736023607206,0.27266,3668.1,3668.0,4.16183387]
[1736023608615,0.27268,3667.8,3667.7,4.16183387]
[1736023609505,3.88939,3668.4,3667.6,3.2078]
[1736023609908,0.27269,3667.7,3667.6,3.2078]
[1736023610907,3.88939,3668.4,3667.6,15.42687886]
[1736023611114,1.3434,3668.5,3667.6,15.42687886]
[1736023611409,1.3434,3668.5,3668.0,3.2078]
[1736023611610,0.27266,3668.1,3668.0,3.2078]
[1736023612705,0.27265,3668.2,3668.0,3.2078]
[1736023612904,0.27266,3668.1,3668.0,3.2078]
[1736023613302,0.27266,3668.1,3668.0,9.48761834]
[1736023614110,0.27266,3668.1,3668.0,15.39988437]
[1736023615311,0.27266,3668.1,3668.0,9.12006603]
[1736023616328,0.27266,3668.1,3668.0,7.39412177]
[1736023616902,0.27266,3668.1,3668.0,2.11862177]
[1736023617101,0.27268,3667.8,3667.7,6.27981834]
[1736023617502,0.27269,3667.7,3667.6,3.2078]
[1736023617910,0.27269,3667.6,3667.5,6.27981834]
[1736023618709,1.3714,3667.9,3667.2,3.2078]
[1736023618909,0.27272,3667.3,3667.2,3.2078]
[1736023620005,0.27271,3667.4,3667.2,3.2078]
[1736023620206,0.27271,3667.4,3667.2,3.48052]
[1736023620602,0.27272,3667.3,3667.2,3.2078]
[1736023621108,2.05309,3667.9,3667.2,3.2078]
[1736023621411,0.27271,3667.4,3667.2,3.48052]
[1736023621607,0.27272,3667.3,3667.2,3.48052]
[1736023621806,0.27272,3667.3,3667.2,3.2078]
[1736023624115,2.05309,3667.9,3667.2,3.2078]
[1736023624505,0.27272,3667.3,3667.2,3.2078]
[1736023626717,1.3714,3667.9,3667.2,3.2078]
[1736023626904,3.2078,3668.4,3667.6,3.2078]
[1736023627409,3.2078,3668.4,3667.1,0.68183]
[1736023627410,0.27265,3668.3,3668.1,0.27265]
[1736023627608,1.3268,3668.6,3668.0,3.48046]
[1736023627816,0.27266,3668.1,3668.0,3.2078]
[1736023628218,0.27266,3668.1,3668.0,3.48046]
[1736023628411,0.27265,3668.2,3668.1,0.27265]
[1736023628613,1.3268,3668.6,3668.0,3.2078]
[1736023628815,0.27262,3668.6,3668.5,0.27263]
[1736023629016,0.91047406,3668.7,3668.6,0.27262]
[1736023629911,0.91047406,3668.7,3668.5,3.2078]
[1736023630113,0.27262,3668.6,3668.5,3.48043]
[1736023630417,1.18308406,3668.7,3668.6,0.27262]
[1736023630616,0.91047406,3668.7,3668.5,3.2078]
[1736023630813,1.18308406,3668.7,3668.5,3.48043]
[1736023631217,1.18308406,3668.7,3668.6,0.27262]
[1736023631615,1.18308406,3668.7,3668.5,3.48042]
[1736023632718,0.27262,3668.6,3668.5,3.2078]
[1736023633613,0.27262,3668.6,3668.1,2.17530284]
[1736023633614,3.0857769,3668.7,3667.8,9.48761834]
[1736023633921,0.27267,3667.9,3667.8,9.48761834]
[1736023634217,0.27265,3668.2,3668.0,0.27266]
[1736023634418,0.91047406,3668.7,3667.8,5.38310284]
[1736023634619,0.27264,3668.4,3668.2,3.48045]
[1736023635015,0.27264,3668.4,3668.2,3.2078]
[1736023635211,0.91047406,3668.7,3668.2,3.2078]
[1736023635415,0.27264,3668.3,3668.2,3.2078]
[1736023636424,0.27562831,3668.3,3668.2,3.2078]
[1736023638319,0.00298831,3668.3,3668.2,3.2078]
[1736023638521,0.00298831,3668.3,3668.2,5.65575284]
[1736023639121,0.00298831,3668.3,3668.2,11.4730308]
[1736023640522,0.00298831,3668.3,3668.2,12.8342308]
[1736023641330,0.00298831,3668.3,3668.2,14.1517308]
[1736023641520,0.91047406,3668.7,3668.6,0.27262]
[1736023641718,0.91047406,3668.7,3668.6,3.48042]
[1736023643018,0.91047406,3668.7,3668.6,9.29769796]
[1736023644318,0.91047406,3668.7,3668.6,15.59508842]
[1736023645629,0.91047406,3668.7,3668.6,15.32246842]
[1736023645925,1.18308406,3668.7,3668.6,12.11466842]
[1736023646724,1.18308406,3668.7,3668.6,6.29739046]
[1736023646928,0.27264,3668.3,3668.2,9.50519046]
[1736023647729,0.27264,3668.3,3668.2,4.21369046]
[1736023647932,0.27266,3668.0,3667.9,8.39741026]
[1736023648226,2.44796284,3668.0,3667.9,1.23e-06]
[1736023648431,0.27269,3667.7,3667.6,4.69461149]
[1736023648629,3.48049,3667.7,3667.6,4.69461149]
[1736023649946,0.27273,3667.1,3667.0,3.2078]
[1736023650533,0.27277,3666.6,3666.5,3.2078]
[1736023651032,0.27278,3666.5,3666.4,2.17530284]
[1736023651628,0.68184,3667.1,3666.1,7.94890284]
[1736023651833,0.68187,3666.9,3666.1,4.4925]
[1736023652027,0.2728,3666.2,3666.1,4.4925]
[1736023652435,2.85714284,3667.1,3666.1,4.4925]
[1736023652727,2.85714284,3667.1,3666.1,4.7653]
[1736023653338,0.27279,3666.3,3666.1,4.7653]
[1736023653633,0.27279,3666.3,3666.1,4.4925]
[1736023654140,0.2728,3666.2,3666.1,4.4925]
[1736023654339,2.85714284,3667.1,3666.1,4.4925]
[1736023654539,0.27279,3666.3,3666.1,4.4925]
[1736023655035,0.27278,3666.5,3666.1,4.7653]
[1736023655341,0.27278,3666.4,3666.1,4.7653]
[1736023656435,0.2728,3666.3,3666.1,4.4925]
[1736023657234,0.68185,3667.0,3666.1,4.4925]
[1736023657536,0.2728,3666.2,3666.1,4.4925]
[1736023658836,0.2728,3666.2,3666.1,3.2078]
[1736023661148,3.2078,3667.2,3666.1,5.38310284]
[1736023661348,0.27275,3666.9,3666.7,0.27276]
[1736023661665,3.2078,3667.2,3666.6,1.3884]
[1736023661942,0.27275,3666.9,3666.7,0.27276]
[1736023663047,0.27276,3666.8,3666.6,4.86896]
[1736023663249,0.68177,3667.5,3666.6,4.5962]
[1736023663544,0.27274,3667.0,3666.8,0.27275]
[1736023663748,3.35230284,3667.6,3666.7,0.27275]
[1736023663942,0.68177,3667.5,3666.7,0.27275]
[1736023664141,0.27275,3666.9,3666.6,4.5962]
[1736023664344,0.27275,3666.9,3666.8,0.27275]
[1736023665549,0.68177,3667.5,3666.6,4.5962]
[1736023665750,0.27276,3666.8,3666.7,0.27276]
[1736023665947,0.27275,3666.9,3666.7,0.27276]
[1736023666255,0.27274,3667.0,3666.8,0.27275]
[1736023666447,0.27274,3667.0,3666.6,4.5962]
[1736023666448,2.17530284,3667.3,3666.6,3.2078]
[1736023666650,4.3848,3667.6,3666.3,0.27279]
[1736023666651,0.27278,3666.5,3666.3,0.27279]
[1736023666851,0.27278,3666.5,3666.4,0.27278]
[1736023667051,0.27278,3666.4,3666.3,0.27279]
[1736023667348,2.17530284,3667.0,3666.1,3.2078]
[1736023667554,0.2728,3666.2,3666.1,3.2078]
[1736023667771,2.05739,3666.9,3666.2,0.27279]
[1736023667951,2.05739,3666.9,3666.1,3.4806]
[1736023667952,0.27279,3666.3,3666.1,3.4806]
[1736023668252,1.3755,3666.9,3666.1,3.2078]
[1736023668454,0.2728,3666.2,3666.1,3.2078]
[1736023670448,2.17530284,3666.7,3666.0,0.27281]
[1736023670648,0.27282,3666.0,3665.9,0.27282]
[1736023670848,0.27278,3666.5,3665.8,0.27282]
[1736023671050,0.68193,3666.6,3665.9,0.27282]
[1736023671555,0.27281,3666.0,3665.7,3.2078]
[1736023671756,0.27281,3666.0,3665.8,0.27283]
[1736023671957,0.27281,3666.0,3665.8,0.27282]
[1736023672351,0.68193,3666.6,3665.8,0.27282]
[1736023672956,4.3848,3666.8,3666.1,3.4806]
[1736023673149,1.177,3666.8,3666.1,3.2078]
[1736023673346,0.2728,3666.2,3666.1,3.2078]
[1736023674251,0.68192,3666.7,3665.8,2.17530284]
[1736023674456,0.27281,3666.1,3665.9,0.27281]
[1736023674963,2.17530284,3666.7,3665.7,3.2078]
[1736023675259,0.27282,3666.0,3665.8,0.27283]
[1736023675752,0.27281,3666.1,3665.9,0.27282]
[1736023676351,2.17530284,3666.7,3665.9,0.27282]
[1736023676352,0.27275,3666.9,3666.6,0.27276]
[1736023676658,0.27275,3666.9,3666.7,4.4695]
[1736023676855,0.27275,3666.8,3666.7,5.8599]
[1736023677679,0.27275,3666.8,3666.7,1.2617]
[1736023679259,0.27278,3666.4,3665.8,3.48062]
[1736023679550,7.85720284,3666.8,3665.8,3.48062]
[1736023679551,0.27282,3666.0,3665.8,3.48062]
[1736023679958,0.27282,3665.9,3665.8,3.2078]
[1736023681048,0.27284,3665.7,3665.6,1.3199]
[1736023681252,0.27285,3665.5,3665.4,3.2078]
[1736023682259,0.68195,3666.5,3665.4,3.2078]
[1736023682465,0.27282,3666.0,3665.8,3.2078]
[1736023682760,0.27282,3666.0,3665.8,3.48063]
[1736023682957,0.27282,3665.9,3665.8,3.2078]
[1736023683762,1.177,3666.6,3666.0,0.27281]
[1736023684067,1.177,3667.2,3666.2,3.2078]
[1736023684257,1.177,3667.2,3666.4,0.27278]
[1736023684455,1.177,3667.2,3666.2,3.2078]
[1736023684661,0.27277,3666.6,3666.4,0.27278]
[1736023684859,0.27276,3666.7,3666.5,0.27278]
[1736023685053,6.56010284,3667.3,3666.5,0.27278]
[1736023685362,6.56010284,3667.3,3666.2,3.2078]
[1736023685570,0.27276,3666.7,3666.5,0.27277]
[1736023685753,4.3848,3667.3,3666.3,3.54490284]
[1736023685958,0.27275,3666.9,3666.7,0.27276]
[1736023686259,0.27276,3666.8,3666.6,0.27276]
[1736023686460,0.68182,3667.2,3666.3,1.3696]
[1736023686664,0.27278,3666.5,3666.3,1.64239]
[1736023687159,0.68184,3667.1,3666.3,1.3696]
[1736023687360,0.27278,3666.4,3666.3,1.3696]
[1736023688468,2.17530284,3666.6,3665.7,3.2078]
[1736023688667,0.682,3666.2,3665.4,1.2702]
[1736023688967,0.27286,3665.4,3665.3,3.2078]
[1736023689463,0.27285,3665.6,3665.4,0.27286]
[1736023689667,3.2285,3666.2,3665.4,0.27286]
[1736023689865,3.2285,3666.2,3665.3,3.48066]
[1736023689866,0.27285,3665.5,3665.3,3.48066]
[1736023690460,3.2285,3666.2,3665.3,3.48066]
[1736023690654,0.27284,3665.6,3665.4,0.27285]
[1736023691060,0.27284,3665.7,3665.5,0.27285]
[1736023691860,3.2078,3666.9,3665.5,5.68213]
[1736023692053,0.27278,3666.4,3666.3,3.2078]
[1736023692255,0.68187,3666.9,3665.9,3.2078]
[1736023692559,0.2728,3666.2,3666.0,1.59561]
[1736023692754,0.68187,3666.9,3666.0,1.3228]
[1736023692965,2.17530284,3667.1,3666.0,1.3228]
[1736023693167,0.27279,3666.3,3666.1,0.2728]
[1736023694461,0.68189,3666.8,3666.0,1.59561]
[1736023694661,0.27281,3666.1,3666.0,1.3228]
[1736023694862,0.27281,3666.1,3666.0,1.59561]
[1736023695068,0.27281,3666.1,3666.0,1.3228]
[1736023696570,0.27281,3666.1,3666.0,6.61752318]
[1736023697760,0.27281,3666.1,3666.0,1.3228]
[1736023699470,0.27281,3666.1,3666.0,1.59561]
[1736023700469,0.27281,3666.1,3666.0,1.3228]
[1736023700670,0.68186,3667.0,3666.0,1.3228]
[1736023700971,0.27278,3666.5,3666.4,0.27278]
[1736023701373,1.84486,3667.0,3666.3,3.2078]
[1736023701573,0.27278,3666.4,3666.3,3.2078]
[1736023703771,0.68189,3666.8,3666.0,1.3228]
[1736023703967,0.27281,3666.1,3666.0,1.3228]
[1736023704774,0.27281,3666.1,3666.0,1.59561]
[1736023705777,0.27281,3666.1,3666.0,6.89289888]
[1736023706578,0.27281,3666.1,3666.0,6.62008888]
[1736023707379,0.27281,3666.1,3666.0,1.3228]
[1736023708179,0.68201,3666.2,3665.6,8.3854621]
[1736023708479,0.27283,3665.8,3665.7,1.67933]
[1736023709181,0.2728,3666.2,3666.1,0.2728]
[1736023709380,0.2728,3666.2,3666.1,3.4806]
[1736023710280,0.68189,3666.8,3666.1,3.2078]
[1736023710478,0.2728,3666.2,3666.1,15.10058071]
[1736023710872,0.2728,3666.2,3666.1,14.82778071]
[1736023711877,0.2728,3666.2,3666.1,8.50738469]
[1736023714279,0.2728,3666.2,3666.1,14.83058311]
[1736023714477,3.33830284,3667.1,3666.1,14.83058311]
[1736023714688,0.2728,3666.2,3666.1,14.83058311]
[1736023716185,0.2728,3666.2,3666.1,3.2078]
[1736023717686,0.2728,3666.2,3666.1,2.5565]
[1736023718483,0.27281,3666.0,3665.9,6.32319842]
[1736023718684,0.27281,3666.0,3665.9,9.80381842]
[1736023719795,0.27281,3666.1,3666.0,0.27281]
[1736023720288,0.2728,3666.2,3666.1,0.2728]
[1736023721088,0.2728,3666.2,3666.1,11.89034099]
[1736023721984,3.2078,3667.0,3666.6,0.27276]
[1736023722181,3.2078,3667.0,3666.7,1.44]
[1736023722383,0.27275,3666.8,3666.7,1.71276]
[1736023722584,0.27275,3666.8,3666.7,1.44]
[1736023724295,3.2078,3667.0,3666.4,6.32205203]
[1736023724495,0.27278,3666.5,3666.4,6.32205203]
[1736023725193,0.27278,3666.4,3666.3,6.32205203]
[1736023725990,0.27278,3666.4,3666.3,11.61564963]
[1736023726790,0.27278,3666.4,3666.3,5.2935976]
[1736023728097,0.27279,3666.3,3666.2,1.492]
[1736023729201,0.27279,3666.3,3666.2,6.78808362]
[1736023730694,0.27279,3666.3,3666.2,5.29608362]
[1736023732300,3.2078,3666.5,3666.0,6.32205203]
[1736023732516,0.27281,3666.1,3666.0,6.32205203]
[1736023733614,0.27281,3666.1,3666.0,5.29760088]
[1736023734016,0.27281,3666.1,3666.0,5.57041088]
[1736023734210,1.146,3666.8,3666.0,5.29760088]
[1736023734413,0.2728,3666.3,3666.2,0.27279]
[1736023735214,3.2078,3667.0,3666.2,11.62315206]
[1736023735414,0.27279,3666.4,3666.3,0.27279]
[1736023736220,3.2078,3667.0,3666.2,11.62315206]
[1736023736418,3.2078,3667.0,3666.0,2.17530284]
[1736023736419,0.27279,3666.4,3666.3,17.16365298]
[1736023736613,0.27279,3666.4,3666.3,16.89086298]
[1736023738021,0.27279,3666.4,3666.3,17.16365298]
[1736023739213,0.27279,3666.4,3666.3,16.89086298]
[1736023739723,0.27279,3666.4,3666.3,13.68306298]
[1736023741525,0.27279,3666.4,3666.3,11.62471966]
[1736023745227,0.27279,3666.4,3666.3,4.21974896]
[1736023746316,0.27279,3666.3,3666.2,4.21974896]
[1736023747227,0.27279,3666.3,3666.2,5.30086652]
[1736023747426,0.27279,3666.3,3666.2,5.57366652]
[1736023747623,0.27279,3666.3,3666.2,7.05126652]
[1736023747835,0.27279,3666.3,3666.2,8.49696652]
[1736023748333,0.27279,3666.3,3666.2,14.8240853]
[1736023748933,1.129,3666.8,3666.2,14.5512853]
[1736023749126,1.129,3666.8,3666.3,2.17530284]
[1736023749421,0.27278,3666.5,3666.4,1.71198]
[1736023750028,3.2078,3667.0,3666.4,4.647]
[1736023750221,0.27275,3666.9,3666.8,0.27275]
[1736023750420,0.27274,3667.1,3667.0,0.27274]
[1736023750621,4.2780947,3667.3,3667.0,2.17530284]
[1736023750826,5.34761837,3667.6,3667.2,3.2078]
[1736023751026,1.13221837,3667.6,3667.5,0.2727]
[1736023752028,0.499,3667.9,3667.5,11.89141291]
[1736023752029,0.27269,3667.7,3667.5,11.89141291]
[1736023752222,0.27269,3667.7,3667.6,3.2078]
[1736023753232,0.27269,3667.7,3667.6,8.50866652]
[1736023754129,0.499,3667.9,3667.6,8.50866652]
[1736023754529,0.27269,3667.7,3667.6,3.2078]
[1736023754926,0.499,3667.9,3667.4,6.31784639]
[1736023755226,0.2727,3667.5,3667.4,6.31784639]
[1736023756633,0.27273,3667.1,3667.0,4.20559474]
[1736023758556,1.81073,3667.7,3667.0,5.48016358]
[1736023758833,0.27273,3667.1,3667.0,5.48016358]
[1736023759531,0.27273,3667.2,3667.0,5.75290358]
[1736023759736,7.1832,3667.8,3666.8,8.49314923]
[1736023759938,0.27273,3667.1,3666.9,0.27274]
[1736023760238,0.27273,3667.1,3666.8,8.49314923]
[1736023760239,0.27274,3667.0,3666.8,8.76589923]
[1736023760839,0.27274,3667.0,3666.8,2.44805284]
[1736023761044,0.27273,3667.2,3667.0,0.27273]
[1736023761338,0.27273,3667.2,3666.8,2.17530284]
[1736023761540,0.68172,3667.7,3666.8,2.17530284]
[1736023761741,0.27274,3667.0,3666.8,2.44805284]